bitfinex-derivatives/quotes_SOLF0:USTF0_20240923
["timestamp","ask_amount","ask_price","bid_price","bid_amount"]
[1727077940539,3.438,145.44,145.43,11.55]
[1727077940747,1.3841,145.51,145.43,11.55]
[1727077941448,3.4378,145.45,145.43,11.55]
[1727077943149,3.4375,145.46,145.43,14.9882]
[1727077943349,11.55,145.53,145.43,11.55]
[1727077943849,11.55,145.53,145.43,14.988]
[1727077944443,3.4374,145.47,145.44,3.4379]
[1727077944644,11.55,145.53,145.43,11.55]
[1727077945246,11.55,145.51,145.42,14.92335044]
[1727077945448,11.55,145.51,145.42,11.55]
[1727077946549,3.438,145.44,145.43,3.50585261]
[1727077948255,3.438,145.44,145.42,11.55]
[1727077948655,3.438,145.44,145.42,15.0737361]
[1727077949153,3.4376,145.46,145.43,14.9882]
[1727077951057,1.3988,145.54,145.45,11.55]
[1727077951460,3.4372,145.48,145.45,14.9876]
[1727077952255,3.4372,145.48,145.46,3.3947686]
[1727077952565,3.4372,145.48,145.45,14.9876]
[1727077952756,3.4369,145.49,145.47,11.55]
[1727077958160,1.3722,145.55,145.47,11.55]
[1727077958461,70.44729805,145.56,145.5,11.55]
[1727077959162,3.4362,145.52,145.5,11.55]
[1727077959464,2.7244,145.59,145.5,11.55]
[1727077959661,3.436,145.53,145.5,14.9864]
[1727077960068,2.7244,145.59,145.5,11.55]
[1727077960259,3.4356,145.55,145.52,14.986]
[1727077961157,3.4356,145.54,145.52,14.986]
[1727077962061,3.4356,145.54,145.52,11.55]
[1727077962565,3.4356,145.54,145.52,14.9861]
[1727077962867,3.4355,145.55,145.52,14.9861]
[1727077965371,2.7244,145.59,145.48,1.4257]
[1727077965372,3.435,145.57,145.54,11.55]
[1727077965870,1.361,145.59,145.54,11.55]
[1727077967771,3.4354,145.55,145.54,11.55]
[1727077968274,3.4354,145.55,145.54,7.39]
[1727077972873,3.4352,145.56,145.54,7.39]
[1727077973074,3.4352,145.56,145.55,7.39]
[1727077979782,3.4356,145.55,145.54,7.39]
[1727077980477,3.4358,145.54,145.51,3.4363]
[1727077980773,7.39,145.57,145.48,1.4257]
[1727077980979,3.4358,145.54,145.53,7.39]
[1727077981777,7.39,145.54,145.47,6.229]
[1727077982080,7.39,145.54,145.49,7.39]
[1727077982480,3.4364,145.51,145.49,7.39]
[1727077984380,7.39,145.54,145.49,7.39]
[1727077985479,3.4365,145.51,145.49,7.39]
[1727077986477,3.4365,145.5,145.49,7.39]
[1727077986672,7.39,145.53,145.48,7.39]
[1727077987384,3.4366,145.5,145.48,7.39]
[1727077990287,3.4366,145.5,145.49,7.39]
[1727077992182,4.75902853,145.56,145.43,1.3258]
[1727077992489,7.39,145.5,145.44,7.39]
[1727077992680,3.4372,145.48,145.46,7.39]
[1727077993586,3.4373,145.47,145.46,7.39]
[1727077994484,3.4371,145.48,145.46,7.39]
[1727077994686,1.4329,145.53,145.43,3.37710553]
[1727077994687,1.4329,145.53,145.47,7.39]
[1727077994891,1.4329,145.53,145.5,7.39]
[1727077995392,3.4365,145.51,145.5,7.39]
[1727077995579,1.4329,145.53,145.48,7.39]
[1727077995984,7.39,145.51,145.42,3.48828113]
[1727077996180,7.39,145.5,145.45,7.39]
[1727077997191,7.39,145.5,145.43,3.45355304]
[1727077997192,1.4542,145.52,145.46,7.39]
[1727077997384,7.39,145.51,145.46,7.39]
[1727077997788,3.4373,145.47,145.46,7.39]
[1727077999896,3.4377,145.46,145.44,7.39]
[1727078000192,3.4377,145.46,145.43,6.89165304]
[1727078000193,1.3578,145.51,145.38,2.8769]
[1727078000388,1.3578,145.51,145.41,8.725]
[1727078000389,3.4384,145.43,145.41,8.725]
[1727078003194,3.4381,145.44,145.42,7.39]
[1727078003388,7.39,145.48,145.43,7.39]
[1727078003584,3.4377,145.46,145.43,10.8282]
[1727078005886,3.4378,145.45,145.43,10.8282]
[1727078007200,3.4378,145.45,145.43,7.39]
[1727078008802,3.4378,145.45,145.43,10.8282]
[1727078010601,3.4383,145.43,145.41,7.39]
[1727078010894,7.39,145.44,145.32,1.3328]
[1727078011090,1.4128,145.47,145.37,7.39]
[1727078011091,7.39,145.43,145.37,7.39]
[1727078011590,3.4391,145.4,145.37,7.39]
[1727078012696,3.4392,145.39,145.35,3.4399]
[1727078012999,3.4392,145.39,145.36,7.39]
[1727078013194,3.4392,145.39,145.37,7.39]
[1727078018501,2.789,145.46,145.38,7.39]
[1727078018700,2.789,145.46,145.4,7.39]
[1727078018904,2.789,145.46,145.41,7.39]
[1727078019100,3.4382,145.44,145.43,7.39]
[1727078019398,1.4128,145.47,145.43,7.39]
[1727078019599,3.438,145.44,145.43,7.39]
[1727078019801,2.6599,145.5,145.4,3.467839]
[1727078020008,7.39,145.48,145.42,7.39]
[1727078020195,3.4382,145.44,145.42,7.39]
[1727078020606,7.39,145.49,145.42,7.39]
[1727078020806,3.438,145.44,145.42,7.39]
[1727078022302,3.438,145.44,145.42,10.8284]
[1727078023803,4.016,145.5,145.43,10.8281]
[1727078024008,7.39,145.49,145.43,10.8281]
[1727078024208,3.4377,145.46,145.43,10.8281]
[1727078024509,7.39,145.48,145.43,7.39]
[1727078024810,3.4379,145.45,145.43,7.39]
[1727078025507,3.4379,145.45,145.42,6.899438]
[1727078025508,4.016,145.5,145.33,9.5821]
[1727078025706,7.39,145.46,145.41,7.39]
[1727078025912,3.4382,145.43,145.41,10.90916335]
[1727078027808,3.4382,145.43,145.41,14.34786335]
[1727078028300,3.4381,145.44,145.41,14.34786335]
[1727078029506,3.4384,145.42,145.4,3.4389]
[1727078029708,7.39,145.45,145.4,10.8289]
[1727078030908,3.4383,145.43,145.4,10.8289]
[1727078032515,3.4383,145.43,145.41,7.39]
[1727078036712,3.4386,145.42,145.39,6.95516025]
[1727078036913,7.39,145.43,145.38,7.39]
[1727078037112,3.4388,145.41,145.39,3.4391]
[1727078037417,3.4388,145.41,145.38,7.39]
[1727078037617,3.4388,145.41,145.38,10.8292]
[1727078038817,3.5221571,145.46,145.33,2.701]
[1727078038818,7.39,145.42,145.33,2.701]
[1727078039017,7.39,145.42,145.37,7.39]
[1727078039211,2.7748,145.45,145.38,10.8292]
[1727078039412,7.39,145.44,145.38,10.8292]
[1727078040107,3.4386,145.42,145.39,3.4391]
[1727078040317,3.4386,145.42,145.39,10.8291]
[1727078040510,3.4386,145.42,145.4,7.39]
[1727078040910,7.39,145.44,145.34,1.3658]
[1727078041111,7.39,145.42,145.34,1.3658]
[1727078041315,7.39,145.42,145.37,7.39]
[1727078042322,3.4391,145.4,145.37,10.8295]
[1727078043718,3.4391,145.4,145.37,3.4395]
[1727078044023,3.4391,145.4,145.37,10.8295]
[1727078044223,3.4391,145.4,145.38,3.4394]
[1727078044424,3.4391,145.4,145.37,7.39]
[1727078044620,3.4387,145.41,145.37,7.39]
[1727078044921,2.7748,145.45,145.37,7.39]
[1727078045117,7.39,145.43,145.37,7.39]
[1727078046117,3.4387,145.41,145.38,3.4392]
[1727078046818,3.4385,145.42,145.39,3.4391]
[1727078047920,3.4387,145.41,145.39,3.4391]
[1727078048127,3.4387,145.41,145.38,10.8293]
[1727078049324,7.39,145.43,145.37,3.4394]
[1727078049524,7.39,145.43,145.38,7.39]
[1727078049926,2.7748,145.45,145.4,7.39]
[1727078050128,6.8717,145.54,145.42,7.39]
[1727078050325,7.39,145.47,145.42,7.39]
[1727078051226,7.39,145.47,145.42,10.8284]
[1727078051924,3.4379,145.45,145.42,10.8284]
[1727078053825,3.42516164,145.48,145.42,10.8282]
[1727078054026,2.8041,145.53,145.42,7.39]
[1727078054228,7.39,145.46,145.42,7.39]
[1727078054930,7.39,145.46,145.41,3.37712634]
[1727078055131,3.4382,145.43,145.41,3.37712634]
[1727078055533,7.39,145.45,145.4,3.4388]
[1727078056028,7.39,145.41,145.38,0.5]
[1727078056527,3.4391,145.4,145.38,0.5]
[1727078059935,3.4391,145.39,145.38,0.5]
[1727078060322,10.8291,145.39,145.38,0.5]
[1727078063638,3.4391,145.39,145.38,0.5]
[1727078065539,10.8291,145.39,145.38,0.5]
[1727078069640,3.4391,145.39,145.38,0.5]
[1727078077545,10.8291,145.39,145.38,0.5]
[1727078081453,3.4391,145.39,145.38,0.5]
[1727078083050,10.8291,145.39,145.38,0.5]
[1727078087056,3.4391,145.39,145.38,0.5]
[1727078087358,7.39,145.41,145.38,0.5]
[1727078088456,3.4391,145.39,145.38,0.5]
[1727078096758,13.66312853,145.56,145.38,7.89]
[1727078096965,7.39,145.45,145.38,7.89]
[1727078097366,3.4385,145.42,145.39,3.4389]
[1727078098756,3.4385,145.42,145.4,3.4388]
[1727078099858,3.4383,145.43,145.4,3.4388]
[1727078100264,7.39,145.45,145.41,3.4387]
[1727078100468,3.4382,145.43,145.4,7.39]
[1727078100858,7.39,145.44,145.39,3.43515651]
[1727078101068,3.4387,145.41,145.38,7.89]
[1727078101864,3.4387,145.41,145.38,11.3293]
[1727078102868,3.4387,145.41,145.39,3.4391]
[1727078104575,3.4385,145.42,145.38,7.89]
[1727078104772,3.4385,145.42,145.39,3.4829764]
[1727078104974,6.8728,145.51,145.38,7.89]
[1727078105272,3.4383,145.43,145.4,10.8288]
[1727078107275,3.4383,145.43,145.41,3.4386]
[1727078108769,3.4383,145.43,145.4,10.8288]
[1727078109973,3.4383,145.43,145.41,3.4386]
[1727078110468,7.39,145.46,145.42,3.4384]
[1727078110669,127.3519273,145.71,145.44,7.39]
[1727078110670,6.8709,145.55,145.44,7.39]
[1727078110874,7.39,145.49,145.44,7.39]
[1727078111272,3.4376,145.46,145.44,7.39]
[1727078111672,7.39,145.49,145.44,7.39]
[1727078111974,7.39,145.51,145.45,7.39]
[1727078112472,3.4372,145.48,145.45,10.8276]
[1727078115176,3.4372,145.48,145.45,3.4376]
[1727078115776,3.4375,145.46,145.4,1.3885]
[1727078115972,3.4375,145.46,145.43,7.39]
[1727078116574,3.4375,145.46,145.43,10.828]
[1727078117576,7.39,145.49,145.44,7.39]
[1727078117877,70.45372284,145.55,145.45,7.39]
[1727078118183,3.4365,145.51,145.48,3.4369]
[1727078118379,3.4365,145.51,145.48,10.8269]
[1727078118883,7.39,145.51,145.46,3.4375]
[1727078119082,7.39,145.51,145.46,7.39]
[1727078119776,3.4369,145.49,145.47,3.4372]
[1727078121377,1.427,145.54,145.48,7.39]
[1727078121378,8.817,145.54,145.48,7.39]
[1727078122286,3.4363,145.52,145.5,7.39]
[1727078122487,70.45372284,145.55,145.47,3.52025029]
[1727078122673,70.45372284,145.55,145.51,7.39]
[1727078123373,3.4359,145.53,145.5,10.8264]
[1727078126380,3.4359,145.53,145.5,3.4364]
[1727078126581,3.4359,145.53,145.5,10.8264]
[1727078127881,7.39,145.53,145.48,1.376]
[1727078128079,7.39,145.53,145.48,8.766]
[1727078128477,3.4364,145.51,145.48,15.70386878]
[1727078129083,70.45372284,145.55,145.46,3.4373]
[1727078129283,7.39,145.5,145.43,2.8383]
[1727078129484,7.39,145.5,145.44,7.39]
[1727078130286,3.4372,145.48,145.45,3.4376]
[1727078130889,3.4373,145.47,145.44,10.8279]
[1727078131089,1.4384,145.53,145.44,7.39]
[1727078131388,7.39,145.49,145.44,7.39]
[1727078131997,3.4371,145.48,145.45,3.4376]
[1727078133889,1.4384,145.53,145.41,1.4214]
[1727078134195,7.39,145.44,145.39,12.32253346]
[1727078134388,7.39,145.44,145.39,8.8109]
[1727078134581,3.4384,145.43,145.39,12.2498]
[1727078134993,3.4384,145.43,145.4,3.51991463]
[1727078135791,3.4384,145.43,145.4,6.95881463]
[1727078136485,3.4385,145.42,145.39,12.2499]
[1727078136698,7.39,145.43,145.38,7.89]
[1727078136991,3.4385,145.42,145.39,3.4391]
[1727078137888,3.4385,145.42,145.39,6.81221687]
[1727078138798,3.4385,145.42,145.39,14.20221687]
[1727078139097,3.4383,145.43,145.4,3.4389]
[1727078139392,7.39,145.46,145.41,7.39]
[1727078139588,3.4381,145.44,145.41,10.8285]
[1727078140184,2.7802,145.47,145.41,7.39]
[1727078140490,3.4379,145.45,145.42,10.8284]
[1727078141297,3.438,145.44,145.42,10.8284]
[1727078141488,3.438,145.44,145.42,7.39]
[1727078142591,3.438,145.44,145.41,10.8286]
[1727078143995,3.4379,145.45,145.42,3.4384]
[1727078144401,7.39,145.46,145.41,7.39]
[1727078145402,3.438,145.44,145.41,10.8285]
[1727078150005,7.39,145.45,145.4,3.36039072]
[1727078150400,7.39,145.45,145.39,8.7895]
[1727078150601,3.4381,145.44,145.41,10.8287]
[1727078150805,3.4381,145.44,145.42,3.43926258]
[1727078151511,3.4381,145.44,145.42,6.87766258]
[1727078151703,3.4378,145.45,145.43,7.39]
[1727078152208,3.4378,145.45,145.42,14.26766258]
[1727078154909,3.4376,145.46,145.43,10.8282]
[1727078156509,3.4378,145.45,145.43,7.39]
[1727078160411,3.4378,145.45,145.44,7.39]
[1727078160606,3.4378,145.45,145.43,7.39]
[1727078160812,3.4378,145.45,145.42,10.8284]
[1727078161210,7.39,145.44,145.39,2.7548]
[1727078161507,7.39,145.44,145.4,6.87380646]
[1727078161714,3.4383,145.43,145.4,6.87380646]
[1727078162207,3.4383,145.43,145.41,3.4387]
[1727078162512,3.4383,145.43,145.4,10.82500646]
[1727078163405,3.4383,145.43,145.4,14.26380646]
[1727078163716,3.4383,145.43,145.4,10.82500646]
[1727078164315,3.4383,145.43,145.4,14.26380646]
[1727078165621,7.39,145.41,145.34,1.3718]
[1727078166015,7.39,145.41,145.35,7.39]
[1727078166415,3.4391,145.4,145.36,3.4398]
[1727078166608,1.3119,145.44,145.33,2.6384]
[1727078166812,7.39,145.39,145.33,8.7049]
[1727078167014,7.39,145.39,145.33,1.3149]
[1727078167816,3.4391,145.39,145.35,7.39]
[1727078168820,3.4391,145.39,145.35,10.83]
[1727078171421,10.8291,145.39,145.34,10.8303]
[1727078171626,10.8291,145.39,145.33,1.3149]
[1727078173117,3.4399,145.36,145.33,3.4405]
[1727078173322,10.8299,145.36,145.33,3.4405]
[1727078173518,3.4399,145.36,145.33,3.4405]
[1727078173717,10.8299,145.36,145.33,3.4405]
[1727078173918,7.39,145.36,145.31,4.80118345]
[1727078174122,7.39,145.33,145.28,1.4516]
[1727078174322,7.39,145.33,145.28,4.90191654]
[1727078174521,3.4411,145.31,145.28,8.34351654]
[1727078174717,7.39,145.33,145.28,8.34351654]
[1727078175118,7.39,145.33,145.28,4.90191654]
[1727078175319,7.39,145.31,145.27,86.35860265]
[1727078175825,7.39,145.31,145.27,78.96860265]
[1727078176018,7.39,145.31,145.26,3.481688]
[1727078176019,7.39,145.3,145.26,3.481688]
[1727078176219,7.39,145.3,145.24,8.8416]
[1727078176416,3.4417,145.29,145.25,3.4423]
[1727078176627,7.39,145.31,145.25,7.39]
[1727078177030,3.4414,145.3,145.27,3.4419]
[1727078180427,3.4415,145.29,145.26,10.8322]
[1727078180735,3.4415,145.29,145.26,3.4422]
[1727078181632,10.8315,145.29,145.26,3.4422]
[1727078184830,3.4415,145.29,145.26,10.8322]
[1727078185133,3.4415,145.29,145.26,3.4422]
[1727078185530,10.8311,145.31,145.25,7.39]
[1727078186334,7.39,145.32,145.26,7.39]
[1727078187836,3.4412,145.31,145.28,3.4417]
[1727078189340,3.4406,145.33,145.29,7.39]
[1727078189826,1.3747,145.37,145.31,7.39]
[1727078190032,7.39,145.36,145.32,3.52407336]
[1727078190232,3.4402,145.35,145.32,6.96487336]
[1727078192035,3.4402,145.35,145.32,3.4408]
[1727078192938,1.3747,145.37,145.32,3.48420183]
[1727078193130,7.39,145.37,145.32,3.48420183]
[1727078193326,7.39,145.37,145.32,7.39]
[1727078193630,7.39,145.37,145.32,10.81328078]
[1727078193830,7.39,145.38,145.32,10.81328078]
[1727078194031,7.39,145.38,145.33,7.39]
[1727078194543,3.4398,145.37,145.34,3.4402]
[1727078198440,10.8298,145.37,145.34,3.4402]
[1727078198739,7.39,145.35,145.28,7.39]
[1727078199134,3.4405,145.34,145.28,7.39]
[1727078199537,7.39,145.35,145.28,7.39]
[1727078200133,7.39,145.33,145.28,7.39]
[1727078200642,7.39,145.33,145.27,7.39]
[1727078200846,7.39,145.32,145.26,7.39]
[1727078201534,3.4413,145.31,145.27,3.4419]
[1727078201746,3.4413,145.31,145.26,7.39]
[1727078202535,3.4413,145.31,145.28,3.4416]
[1727078206950,6.8776,145.41,145.28,7.39]
[1727078207149,7.39,145.33,145.28,7.39]
[1727078207547,3.4408,145.32,145.29,3.4413]
[1727078209048,7.39,145.35,145.29,7.39]
[1727078209451,7.39,145.35,145.24,4.85756172]
[1727078209452,7.39,145.35,145.31,7.39]
[1727078210652,3.4405,145.34,145.31,7.39]
[1727078210844,3.4405,145.34,145.31,10.831]
[1727078211551,3.4405,145.34,145.32,3.4408]
[1727078211753,3.4402,145.35,145.32,3.4408]
[1727078212047,7.39,145.37,145.32,7.39]
[1727078212253,3.44,145.36,145.33,3.4406]
[1727078212455,7.39,145.37,145.33,7.39]
[1727078213249,3.44,145.36,145.33,10.8305]
[1727078213958,10.8297,145.37,145.34,3.4402]
[1727078214152,3.4397,145.37,145.34,3.4402]
[1727078215158,3.4399,145.36,145.34,3.4402]
[1727078215656,3.4399,145.36,145.33,10.8305]
[1727078222663,8.39,145.4,145.35,7.39]
[1727078223462,3.4395,145.38,145.35,10.83]
[1727078223660,1.0,145.4,145.35,7.39]
[1727078223863,7.39,145.43,145.38,7.39]
[1727078224171,3.439,145.4,145.38,7.39]
[1727078225959,7.39,145.42,145.36,3.454209]
[1727078226261,7.39,145.42,145.29,2.8276]
[1727078226262,7.39,145.39,145.34,3.50100375]
[1727078226463,7.39,145.39,145.33,7.39]
[1727078226968,7.39,145.39,145.34,3.38470505]
[1727078227371,3.4398,145.37,145.34,10.8302]
[1727078227762,3.4398,145.37,145.34,14.20206206]
[1727078228862,7.39,145.36,145.31,7.39]
[1727078229061,7.39,145.35,145.3,8.7197]
[1727078229462,3.4407,145.33,145.3,12.1609]
[1727078229665,3.4407,145.33,145.29,2.8276]
[1727078229666,7.39,145.32,145.28,7.39]
[1727078229867,7.39,145.32,145.27,7.39]
[1727078230170,4.73286155,145.38,145.27,10.90019133]
[1727078230171,7.39,145.31,145.27,10.90019133]
[1727078230870,10.8312,145.31,145.27,14.34199133]
[1727078232366,3.4412,145.31,145.27,6.95199133]
[1727078236571,3.4413,145.3,145.27,6.95199133]
[1727078241266,3.4411,145.31,145.27,6.95199133]
[1727078243573,11.56,145.32,145.26,3.4421]
[1727078243773,11.56,145.32,145.25,4.1511]
[1727078244078,3.4417,145.29,145.26,3.52038006]
[1727078245573,3.4418,145.28,145.26,3.52038006]
[1727078246176,3.4421,145.27,145.24,3.4426]
[1727078248184,3.4425,145.25,145.22,3.443]
[1727078250680,3.4423,145.26,145.23,3.4429]
[1727078251079,14.96392561,145.29,145.22,3.443]
[1727078251279,14.96392561,145.29,145.21,15.07146615]
[1727078251887,14.96392561,145.29,145.21,18.51466615]
[1727078251888,3.4426,145.25,145.21,18.51466615]
[1727078252486,3.4426,145.25,145.22,3.4431]
[1727078252686,3.4426,145.25,145.21,15.07146615]
[1727078253185,3.4426,145.25,145.21,18.51466615]
[1727078253382,3.4421,145.27,145.21,15.07146615]
[1727078253586,3.4421,145.27,145.23,3.4427]
[1727078254290,3.4421,145.27,145.24,7.4]
[1727078257695,3.4424,145.26,145.22,3.4431]
[1727078257894,3.4424,145.26,145.21,10.91146615]
[1727078258096,3.4424,145.26,145.21,7.4]
[1727078258489,10.8424,145.26,145.22,3.443]
[1727078258690,10.8424,145.26,145.22,6.95516166]
[1727078263692,7.4,145.34,145.25,7.4]
[1727078263898,7.4,145.35,145.3,7.4]
[1727078264101,7.4,145.35,145.31,3.36603904]
[1727078264295,10.8403,145.35,145.31,6.80693904]
[1727078264796,10.8403,145.35,145.31,3.4409]
[1727078265596,3.4403,145.34,145.31,3.4409]
[1727078265803,7.4,145.35,145.31,3.4409]
[1727078266504,7.4,145.35,145.3,10.8411]
[1727078266899,3.4404,145.34,145.3,10.8411]
[1727078267601,3.4406,145.33,145.3,7.4]
[1727078271105,3.4406,145.33,145.3,10.8412]
[1727078272194,17.1693,145.62,145.31,7.4]
[1727078272396,7.4,145.4,145.35,7.4]
[1727078272600,7.4,145.41,145.35,7.4]
[1727078272804,3.4391,145.4,145.36,3.4398]
[1727078273503,7.4,145.39,145.33,7.4]
[1727078273799,3.4396,145.38,145.33,7.4]
[1727078274004,7.4,145.39,145.34,7.4]
[1727078274601,7.4,145.41,145.36,7.4]
[1727078275000,3.4393,145.39,145.36,7.4]
[1727078275201,5.0665,145.45,145.36,7.4]
[1727078275601,7.4,145.4,145.36,7.4]
[1727078275806,3.4393,145.39,145.36,7.4]
[1727078276801,3.4395,145.38,145.36,7.4]
[1727078277006,3.4395,145.38,145.35,3.44]
[1727078278304,7.4,145.39,145.26,14.59224129]
[1727078278509,3.4399,145.36,145.33,3.4404]
[1727078280209,3.4397,145.37,145.34,7.4]
[1727078280605,3.4397,145.37,145.34,10.8403]
[1727078281009,3.4394,145.38,145.35,10.8399]
[1727078282099,3.4392,145.39,145.35,10.8399]
[1727078282407,7.4,145.43,145.38,7.4]
[1727078282913,3.4388,145.41,145.38,10.8393]
[1727078284006,3.4383,145.43,145.39,10.839]
[1727078284212,3.4383,145.43,145.39,7.4]
[1727078284404,5.0665,145.45,145.39,7.4]
[1727078284708,7.4,145.44,145.39,7.4]
[1727078285110,3.4386,145.42,145.39,3.4391]
[1727078285801,3.4386,145.42,145.39,10.8391]
[1727078288320,3.4386,145.42,145.39,3.4391]
[1727078288513,3.4387,145.41,145.38,10.8393]
[1727078288913,5.0665,145.45,145.38,7.4]
[1727078289113,5.0665,145.45,145.42,7.4]
[1727078289114,3.672,145.45,145.42,7.4]
[1727078289321,1.0,145.45,145.42,7.4]
[1727078289619,3.4376,145.46,145.43,10.8381]
[1727078289819,3.4376,145.46,145.44,7.4]
[1727078290613,3.4373,145.47,145.44,10.8379]
[1727078291514,3.4373,145.47,145.38,2.8366]
[1727078291515,2.8064,145.51,145.45,7.4]
[1727078291712,2.8064,145.51,145.47,7.4]
[1727078292217,3.4366,145.5,145.47,7.4]
[1727078292422,4.1947,145.57,145.47,7.4]
[1727078292717,7.4,145.53,145.47,7.4]
[1727078292920,3.4365,145.51,145.47,10.8372]
[1727078293220,7.4,145.51,145.47,7.4]
[1727078294212,3.4367,145.5,145.47,7.4]
[1727078294621,7.4,145.51,145.47,7.4]
[1727078296919,3.4368,145.49,145.47,7.4]
[1727078301826,3.4373,145.47,145.44,6.86728408]
[1727078302033,7.4,145.51,145.46,7.4]
[1727078302631,3.4368,145.49,145.46,7.4]
[1727078302823,3.4368,145.49,145.48,7.4]
[1727078303426,3.4367,145.5,145.48,7.4]
[1727078303623,3.4367,145.5,145.49,7.4]
[1727078305429,73.98199468,145.55,145.49,7.4]
[1727078305430,3.4364,145.51,145.49,7.4]
[1727078305624,7.4,145.53,145.49,7.4]
[1727078305825,3.4365,145.5,145.49,7.4]
[1727078306026,7.4,145.53,145.48,7.4]
[1727078306632,3.4367,145.5,145.48,7.4]
[1727078310031,3.4368,145.49,145.48,7.4]
[1727078311538,7.4,145.5,145.38,8.3325]
[1727078311737,7.4,145.5,145.45,7.4]
[1727078312040,3.4375,145.47,145.45,7.4]
[1727078315932,3.4375,145.47,145.44,3.4379]
[1727078316137,3.4375,145.47,145.45,7.4]
[1727078319131,3.4375,145.47,145.44,3.4379]
[1727078319132,7.4,145.48,145.43,7.4]
[1727078319738,3.4379,145.45,145.43,7.4]
[1727078322348,7.4,145.46,145.39,2.7016]
[1727078322649,7.4,145.44,145.39,2.7016]
[1727078322837,7.4,145.44,145.4,7.4]
[1727078323147,7.4,145.45,145.41,7.4]
[1727078323348,7.4,145.47,145.42,7.4]
[1727078323944,3.4381,145.44,145.42,7.4]
[1727078326146,3.4382,145.43,145.42,7.4]
[1727078327445,3.4378,145.45,145.42,10.8384]
[1727078327645,3.4378,145.45,145.43,7.4]
[1727078327951,3.36634292,145.49,145.44,7.4]
[1727078327952,7.4,145.49,145.44,7.4]
[1727078328342,3.4374,145.47,145.44,10.8379]
[1727078328856,3.4374,145.47,145.44,14.3027213]
[1727078329053,3.4371,145.48,145.46,7.4]
[1727078331246,3.4371,145.48,145.47,7.4]
[1727078331446,3.4369,145.49,145.47,7.4]
[1727078331748,3.4369,145.49,145.48,7.4]
[1727078332354,3.4367,145.5,145.48,7.4]
[1727078333749,3.4368,145.49,145.48,7.4]
[1727078337353,6.8674,145.63,145.48,7.4]
[1727078337549,7.4,145.59,145.53,7.4]
[1727078337755,3.4352,145.56,145.53,7.4]
[1727078338152,3.35349508,145.63,145.53,7.4]
[1727078338355,3.4352,145.56,145.53,10.8358]
[1727078339252,3.4352,145.56,145.53,7.4]
[1727078340356,3.4354,145.55,145.53,7.4]
[1727078341058,7.4,145.59,145.53,10.8358]
[1727078341059,3.4352,145.56,145.53,10.8358]
[1727078341253,3.4352,145.56,145.55,7.4]
[1727078343154,3.4354,145.55,145.53,7.4]
[1727078343360,7.4,145.58,145.53,7.4]
[1727078343561,3.4353,145.56,145.53,10.8358]
[1727078344863,7.4,145.58,145.53,7.4]
[1727078344864,3.4354,145.55,145.53,7.4]